bitfinex-derivatives/quotes_ETHF0:USTF0_20250224
["timestamp","ask_amount","ask_price","bid_price","bid_amount"]
[1740356657403,5.7328,2840.9,2840.3,0.00528998]
[1740356657614,0.70405,2840.7,2840.3,0.00528998]
[1740356658101,5.7328,2840.9,2840.3,0.00528998]
[1740356658303,3.2078,2840.5,2839.4,0.5538]
[1740356658499,0.7044,2839.3,2839.1,3.2078]
[1740356658705,0.5228,2840.8,2839.1,3.2078]
[1740356658706,2.525,2839.6,2839.1,3.2078]
[1740356658905,0.70427,2839.8,2839.1,3.2078]
[1740356658906,2.525,2839.7,2839.1,3.2078]
[1740356659308,3.22923,2840.0,2839.5,3.2078]
[1740356659513,2.525,2840.0,2839.5,3.2078]
[1740356659706,2.5302574,2840.0,2839.5,3.91213]
[1740356659906,0.0052574,2840.0,2839.5,3.2078]
[1740356660213,3.2078,2839.6,2839.1,0.0052802]
[1740356660406,0.0052574,2840.0,2839.1,0.0052802]
[1740356660407,0.70437,2839.4,2839.1,0.0052802]
[1740356660609,0.7044,2839.2,2839.1,0.0052802]
[1740356661206,3.2078,2839.3,2838.3,4.79732745]
[1740356661415,0.70462,2838.4,2837.9,4.307]
[1740356661612,0.7046,2838.5,2837.9,4.307]
[1740356661808,0.7046,2838.5,2837.9,5.01172]
[1740356662010,0.70457,2838.6,2837.9,5.01172]
[1740356662315,0.70457,2838.6,2838.0,0.7047]
[1740356662511,0.0052802,2838.5,2838.0,0.0052802]
[1740356663127,0.0052802,2838.5,2838.3,3.2078]
[1740356663821,0.0052802,2838.5,2838.0,0.0052802]
[1740356664024,0.0052802,2838.5,2837.7,3.2078]
[1740356664025,0.70469,2838.1,2837.7,3.2078]
[1740356664227,2.524,2838.1,2837.7,3.2078]
[1740356664422,2.524,2838.1,2837.7,3.91257]
[1740356665020,2.524,2838.1,2837.7,3.2078]
[1740356665222,0.70471,2838.0,2837.7,3.2078]
[1740356665419,2.524,2838.1,2837.7,3.2078]
[1740356665620,2.524,2838.1,2837.6,41.5100802]
[1740356665824,0.70464,2838.3,2837.7,0.70477]
[1740356666030,2.524,2838.2,2837.7,3.2078]
[1740356666229,2.524,2838.2,2837.7,3.91257]
[1740356666428,3.2130802,2838.5,2837.7,3.2078]
[1740356666429,2.524,2838.1,2837.7,3.2078]
[1740356666725,3.2130802,2838.5,2837.7,3.2078]
[1740356666726,0.70466,2838.2,2837.7,3.91257]
[1740356666926,2.524,2838.1,2837.7,3.2078]
[1740356667230,5.7370802,2838.5,2838.0,0.70469]
[1740356667430,5.7370802,2838.5,2837.7,3.2078]
[1740356667931,0.70466,2838.2,2837.7,3.91258]
[1740356668131,5.7370802,2838.5,2837.8,0.70474]
[1740356668132,0.70464,2838.3,2837.8,0.70474]
[1740356668328,5.7370802,2838.5,2837.7,3.2078]
[1740356668329,0.7046,2838.4,2837.7,3.2078]
[1740356668531,0.70469,2838.1,2837.7,3.2078]
[1740356668733,0.70466,2838.2,2837.7,3.91257]
[1740356669128,5.7370802,2838.5,2837.6,0.0052802]
[1740356669432,5.7370802,2838.5,2837.6,0.7100802]
[1740356669433,0.7047,2838.1,2837.6,0.7100802]
[1740356669633,2.524,2838.0,2837.6,0.7100802]
[1740356670125,3.22872,2838.0,2837.6,0.0052802]
[1740356670326,2.524,2838.0,2837.6,0.0052802]
[1740356670527,0.70473,2837.9,2837.6,0.0052802]
[1740356671230,3.22872,2838.0,2837.6,0.7100802]
[1740356671431,2.524,2837.9,2837.6,0.7100802]
[1740356671734,0.70471,2838.0,2837.6,0.0052802]
[1740356671935,2.524,2838.0,2837.6,0.7100702]
[1740356672136,3.22872,2838.0,2837.6,0.0052802]
[1740356672433,2.524,2838.0,2837.6,0.0052802]
[1740356672623,0.70473,2837.9,2837.6,0.0052802]
[1740356673033,2.524,2838.1,2837.6,0.7100702]
[1740356673227,0.70471,2838.0,2837.6,0.7100702]
[1740356673430,3.9124,2838.4,2838.0,0.70469]
[1740356673629,0.0052802,2838.5,2837.7,3.2078]
[1740356673826,0.70467,2838.2,2837.8,0.70475]
[1740356674027,0.0052802,2838.5,2837.7,3.2078]
[1740356674223,0.0052802,2838.5,2838.0,3.2078]
[1740356674429,0.70465,2838.3,2837.8,0.70475]
[1740356674630,0.0052802,2838.5,2837.7,3.2078]
[1740356674831,0.70474,2837.9,2837.6,0.5500802]
[1740356675032,3.7193,2838.4,2837.6,0.0052802]
[1740356675537,0.70473,2837.9,2837.6,0.0052802]
[1740356675734,3.7193,2838.4,2837.6,0.0052802]
[1740356675931,3.2078,2838.1,2837.6,0.0052802]
[1740356676332,0.70469,2838.1,2837.7,0.70478]
[1740356676530,2.524,2838.1,2837.6,0.0052802]
[1740356676945,1.21612,2838.4,2838.0,0.7047]
[1740356677238,0.5115,2838.4,2838.1,0.70467]
[1740356677431,5.7370802,2838.5,2838.0,3.2078]
[1740356677631,5.7370802,2838.5,2838.1,0.70466]
[1740356677632,6.4416602,2838.5,2838.1,0.70466]
[1740356678236,3.2130802,2838.5,2838.0,3.2078]
[1740356678441,3.2130802,2838.5,2838.4,0.7046]
[1740356679435,0.0052802,2838.5,2838.4,0.7046]
[1740356680741,0.70438,2839.4,2839.1,0.70443]
[1740356681044,2.524,2839.7,2839.2,0.70439]
[1740356681244,2.524,2839.7,2839.2,40.8]
[1740356681447,0.5107,2839.8,2839.2,44.0078]
[1740356681647,2.523,2840.1,2839.2,44.0078]
[1740356681942,0.70429,2839.7,2839.4,0.7096202]
[1740356682443,0.0052802,2839.9,2839.4,0.0052802]
[1740356682643,0.70428,2839.7,2839.4,0.0052802]
[1740356682843,3.2078,2839.6,2839.4,0.0052802]
[1740356683048,3.22733,2839.5,2839.4,0.0052802]
[1740356683248,3.0773,2839.5,2838.5,3.2078]
[1740356683539,0.70445,2839.1,2838.5,3.2078]
[1740356683742,0.70441,2839.2,2838.8,0.7045]
[1740356684043,0.70436,2839.4,2838.9,0.70447]
[1740356684350,3.0773,2839.5,2839.2,0.70439]
[1740356684550,0.5543,2839.5,2839.1,3.2078]
[1740356684737,2.523,2839.7,2839.1,0.70441]
[1740356685144,0.70434,2839.5,2839.1,0.70441]
[1740356685739,0.70434,2839.5,2838.9,0.0052802]
[1740356685740,3.2078,2839.5,2838.9,0.0052802]
[1740356686451,0.70444,2839.1,2838.9,0.0052802]
[1740356686655,0.70442,2839.2,2838.9,0.0052802]
[1740356686846,0.70439,2839.3,2838.9,0.0052802]
[1740356687045,3.2078,2839.5,2838.9,0.0052802]
[1740356687250,3.91215,2839.5,2839.0,0.70444]
[1740356687547,0.70435,2839.5,2838.9,0.0052802]
[1740356687747,0.70435,2839.5,2839.1,0.70443]
[1740356687948,5.7308,2839.6,2838.9,0.0052802]
[1740356688259,6.43512,2839.6,2839.0,3.2078]
[1740356688547,0.70435,2839.5,2839.1,0.70442]
[1740356688748,0.7044,2839.3,2838.9,0.7097502]
[1740356688945,0.70445,2839.1,2838.9,0.0052802]
[1740356689150,5.7308,2839.6,2838.9,0.0052802]
[1740356689550,0.70437,2839.4,2839.0,0.70445]
[1740356689949,0.70443,2839.2,2838.9,0.0052802]
[1740356690350,5.7308,2839.6,2838.9,0.0052802]
[1740356690666,0.7044,2839.3,2838.9,0.7097502]
[1740356690955,0.70441,2839.2,2838.9,0.7097502]
[1740356691151,0.70437,2839.4,2838.9,0.0052802]
[1740356691357,5.7308,2839.6,2838.9,0.0052802]
[1740356691659,0.70439,2839.3,2838.9,0.0052802]
[1740356691855,5.7308,2839.6,2838.9,0.0052802]
[1740356692050,0.70445,2839.1,2838.9,0.0052802]
[1740356692453,0.70445,2839.0,2838.9,0.0052802]
[1740356692656,7.49159,2839.6,2838.9,0.0052802]
[1740356692856,0.70445,2839.0,2838.9,0.0052802]
[1740356693161,5.7308,2839.6,2839.0,0.70445]
[1740356693355,3.2078,2839.6,2838.9,0.0052802]
[1740356693554,0.70444,2839.1,2838.9,0.0052802]
[1740356693756,3.2078,2839.3,2838.9,0.0052802]
[1740356693953,0.70443,2839.2,2838.9,0.0052802]
[1740356694157,2.523,2839.5,2838.9,0.0052802]
[1740356694459,0.70445,2839.0,2838.9,0.0052802]
[1740356696953,3.91225,2839.0,2838.9,0.0052802]
[1740356697354,6.43525,2839.0,2838.9,0.0052802]
[1740356698558,5.7308,2839.0,2838.4,3.2078]
[1740356698758,0.70458,2838.5,2838.4,3.2078]
[1740356699059,0.70464,2838.3,2838.2,40.8]
[1740356699561,3.2078,2838.7,2838.1,3.2078]
[1740356699562,0.5518,2838.6,2838.1,3.2078]
[1740356699756,0.70465,2838.2,2838.1,3.2078]
[1740356699961,0.70464,2838.3,2838.1,3.2078]
[1740356700160,3.063,2838.5,2838.1,44.71247]
[1740356700161,0.0052802,2838.4,2838.1,44.71247]
[1740356700362,0.70465,2838.2,2838.1,44.0078]
[1740356700564,0.0052802,2838.4,2838.1,3.2078]
[1740356700759,0.0052802,2838.4,2838.1,3.91246]
[1740356700961,0.0052802,2838.4,2838.1,3.2078]
[1740356701158,3.2130802,2838.4,2837.3,3.2078]
[1740356701470,0.70481,2837.6,2837.2,0.70489]
[1740356701964,0.7048,2837.7,2837.2,0.70488]
[1740356702161,0.5352,2838.2,2837.6,3.2078]
[1740356702464,2.523,2838.3,2837.6,3.2078]
[1740356702666,0.70468,2838.1,2837.7,0.70476]
[1740356703168,0.70467,2838.2,2837.8,0.70474]
[1740356703368,3.22764,2838.3,2837.9,0.70471]
[1740356703853,3.22764,2838.3,2838.0,0.7047]
[1740356703854,2.523,2838.3,2838.0,0.7047]
[1740356704070,4.4667002,2838.4,2838.0,0.7047]
[1740356704264,3.7620802,2838.4,2837.6,4.2833]
[1740356704672,3.7620802,2838.4,2838.0,0.70469]
[1740356704864,3.7620802,2838.4,2837.6,1.0755]
[1740356705167,0.70465,2838.3,2837.8,0.70473]
[1740356705367,3.7620802,2838.4,2837.6,1.0755]
[1740356705755,3.7620802,2838.4,2837.7,40.8]
[1740356705961,3.7620802,2838.4,2837.8,3.2078]
[1740356706160,3.7620802,2838.4,2838.1,0.70467]
[1740356706660,4.4666802,2838.4,2838.1,0.70467]
[1740356706966,3.7620802,2838.4,2837.8,3.2078]
[1740356707269,4.4667002,2838.4,2838.0,0.70469]
[1740356707864,0.70465,2838.2,2837.8,3.2078]
[1740356708069,0.70465,2838.2,2837.9,0.70473]
[1740356708258,0.70465,2838.2,2837.8,3.2078]
[1740356708259,4.4666902,2838.4,2838.0,0.70469]
[1740356708564,4.4666902,2838.4,2837.9,0.70471]
[1740356708565,0.70464,2838.3,2837.9,0.70471]
[1740356709069,3.7620802,2838.4,2837.8,3.2078]
[1740356709264,0.70466,2838.2,2837.8,3.91255]
[1740356709464,0.70465,2838.3,2837.9,0.70473]
[1740356709665,0.00398251,2838.0,2837.9,0.70473]
[1740356711366,0.0052802,2838.4,2838.3,0.70463]
[1740356711574,0.0052802,2838.4,2838.3,3.91243]
[1740356711874,3.22739,2839.3,2838.9,0.70446]
[1740356712368,0.70439,2839.3,2839.0,0.70445]
[1740356712561,3.2078,2839.4,2839.1,0.70441]
[1740356713270,3.2078,2839.4,2839.2,0.70439]
[1740356713475,0.0052802,2839.5,2839.1,3.2078]
[1740356713659,0.0052802,2839.5,2839.4,0.70436]
[1740356713868,0.0052802,2839.5,2839.4,3.91216]
[1740356714065,0.0052802,2839.5,2839.2,3.2078]
[1740356714368,0.0052802,2839.5,2839.4,0.70436]
[1740356716074,0.0052802,2839.5,2839.2,3.2078]
[1740356716272,0.70443,2839.1,2839.0,0.0052802]
[1740356716767,3.589,2839.4,2839.0,0.0052802]
[1740356716962,0.70443,2839.1,2839.0,0.0052802]
[1740356717365,6.0,2839.1,2838.2,3.2078]
[1740356717567,3.2078,2838.9,2838.5,0.70456]
[1740356717771,2.522,2838.8,2838.3,0.70463]
[1740356717973,3.22652,2838.8,2838.3,0.70463]
[1740356718169,2.522,2838.8,2838.5,0.70457]
[1740356718370,2.522,2838.8,2838.2,3.2078]
[1740356718677,2.522,2838.8,2838.4,0.0052802]
[1740356718967,0.70455,2838.7,2838.4,0.0052802]
[1740356719170,2.522,2838.8,2838.4,0.0052802]
[1740356719375,0.5107,2838.6,2838.4,0.0052802]
[1740356720471,3.22653,2838.8,2838.4,0.0052802]
[1740356720773,0.70458,2838.5,2838.4,0.0052802]
[1740356721071,3.2078,2838.6,2838.4,0.0052802]
[1740356721273,3.2078,2838.9,2838.4,0.0052802]
[1740356721471,3.2078,2838.9,2838.8,0.7045]
[1740356721672,3.2078,2838.9,2838.7,0.70451]
[1740356721868,2.522,2839.0,2838.5,40.8]
[1740356722069,2.522,2839.0,2838.8,0.70448]
[1740356722270,2.522,2839.0,2838.5,40.8]
[1740356722566,0.70449,2838.9,2838.5,41.50457]
[1740356722975,5.7298,2839.0,2838.5,40.8]
[1740356723176,0.70449,2838.9,2838.5,41.50457]
[1740356723370,5.7298,2839.0,2838.5,40.8]
[1740356723575,6.43427,2839.0,2838.5,41.50456]
[1740356723772,5.7298,2839.0,2838.5,40.8]
[1740356723965,3.2078,2839.0,2838.5,40.8]
[1740356724165,3.2078,2839.0,2838.7,0.70452]
[1740356724477,3.2078,2839.0,2838.6,0.70454]
[1740356724871,3.2078,2839.0,2838.5,41.8581]
[1740356725073,0.70449,2838.9,2838.5,1.0581]
[1740356725472,3.2078,2839.0,2838.6,0.70454]
[1740356725777,3.2078,2839.0,2838.6,0.70455]
[1740356725979,0.70446,2839.0,2838.6,0.70455]
[1740356726172,3.2078,2839.0,2838.5,1.0581]
[1740356726370,3.91227,2839.0,2838.6,0.70455]
[1740356726577,3.2078,2839.0,2838.6,0.70455]
[1740356726975,3.22645,2839.1,2838.7,0.70452]
[1740356727481,3.7185,2839.3,2838.5,1.0581]
[1740356727779,2.522,2839.1,2838.5,1.0581]
[1740356727974,0.70446,2839.0,2838.6,0.70453]
[1740356728179,0.70447,2839.0,2838.6,0.70453]
[1740356729173,0.70447,2839.0,2838.5,1.0581]
[1740356729472,0.70447,2839.0,2838.7,0.70453]
[1740356729673,3.2078,2839.0,2838.5,1.0581]
[1740356729882,0.70455,2838.7,2838.4,3.2130802]
[1740356730382,0.70458,2838.5,2838.4,0.0052802]
[1740356731580,2.522,2838.6,2838.4,0.0052802]
[1740356731778,2.522,2838.6,2838.4,0.7098702]
[1740356731978,0.70458,2838.5,2838.4,0.0052802]
[1740356732778,0.70458,2838.5,2837.4,0.5402]
[1740356732978,0.70458,2838.5,2837.3,3.2078]
[1740356732979,3.2078,2838.2,2837.3,4.248]
[1740356733179,0.97903754,2838.5,2837.3,4.248]
[1740356733180,3.2078,2837.9,2837.3,4.248]
[1740356733480,0.70475,2837.8,2837.4,41.50484]
[1740356733677,3.2078,2838.0,2837.4,40.8]
[1740356733878,3.2078,2838.0,2836.9,3.91277]
[1740356733879,3.2078,2837.7,2836.9,3.91277]
[1740356734093,3.0696,2837.6,2837.4,0.00354296]
[1740356734378,0.70483,2837.5,2837.4,0.00354296]
[1740356735572,3.0696,2837.6,2837.4,0.00354296]
[1740356735981,3.77441,2837.6,2837.4,0.00354296]
[1740356736178,0.70483,2837.5,2837.4,0.00354296]
[1740356736477,3.77442,2837.6,2837.4,0.00354296]
[1740356736883,3.0696,2837.6,2837.4,0.00354296]
[1740356737280,3.77442,2837.6,2837.4,0.00354296]
[1740356737684,3.0696,2837.6,2837.4,0.00354296]
[1740356737886,3.77441,2837.6,2837.4,0.00354296]
[1740356738288,3.0696,2837.6,2837.4,0.00354296]
[1740356738687,3.77441,2837.6,2837.4,0.00354296]
[1740356739190,0.70483,2837.5,2837.4,0.00354296]
[1740356742987,1.76216,2837.4,2836.3,3.2078]
[1740356743189,3.2078,2837.0,2836.6,0.70505]
[1740356743391,2.522,2837.0,2836.7,40.8]
[1740356743585,5.7298,2837.0,2836.3,3.2078]
[1740356743787,5.7298,2837.0,2836.2,0.5148]
[1740356743986,0.70504,2836.7,2836.2,1.21993]
[1740356744186,0.5177,2836.9,2836.2,0.5148]
[1740356744487,0.5177,2836.9,2835.8,2.10672745]
[1740356744488,3.2078,2836.4,2835.8,0.5172]
[1740356744691,6.43592,2836.4,2835.9,0.70522]
[1740356744895,5.7360802,2836.4,2835.8,41.3172]
[1740356745192,0.70514,2836.3,2835.8,42.02244]
[1740356745582,0.70514,2836.3,2835.8,41.3172]
[1740356745785,0.70514,2836.3,2835.9,0.70522]
[1740356745990,5.7360802,2836.4,2835.8,41.3172]
[1740356746183,5.7360802,2836.4,2836.1,0.70517]
[1740356746383,6.4411802,2836.4,2835.8,41.3172]
[1740356746590,5.7360802,2836.4,2836.1,0.70516]
[1740356746989,0.0052802,2836.4,2836.1,3.2078]
[1740356747192,0.0052802,2836.4,2836.3,0.70512]
[1740356747388,0.0052802,2836.4,2835.8,44.525]
[1740356747594,2.523,2836.3,2835.8,44.525]
[1740356747794,3.2078,2836.0,2835.8,40.8]
[1740356747989,3.2078,2836.0,2835.5,0.5161]
[1740356748495,3.2078,2836.0,2835.6,0.7053]
[1740356748799,3.913,2836.0,2835.6,0.7053]
[1740356749109,0.70526,2835.8,2835.5,0.5161]
[1740356749296,0.70529,2835.7,2835.3,41.322]
[1740356749599,0.70531,2835.6,2835.1,0.70541]
[1740356749800,0.70531,2835.6,2835.0,3.2078]
[1740356749999,0.70531,2835.6,2835.2,0.70539]
[1740356750199,3.2078,2835.7,2835.1,40.8]
[1740356750397,2.523,2835.8,2835.1,40.8]
[1740356751098,2.523,2835.8,2835.4,0.70534]
[1740356751302,2.523,2835.8,2835.1,40.8]
[1740356751695,2.523,2835.8,2835.4,0.70533]
[1740356752801,2.523,2835.8,2835.1,40.8]
[1740356753002,2.523,2835.8,2835.4,0.70534]
[1740356753303,2.523,2835.8,2835.5,0.7053]
[1740356753904,2.523,2835.8,2835.7,0.70527]
[1740356754204,3.2078,2836.0,2835.7,0.70527]
[1740356754205,2.987,2836.1,2835.7,0.70527]
[1740356754402,2.987,2836.1,2835.3,3.2078]
[1740356754403,5.7308,2836.0,2835.8,0.70524]
[1740356754606,0.70526,2835.8,2835.4,0.5471]
[1740356754801,5.7308,2836.0,2835.1,40.8]
[1740356754802,3.2078,2835.7,2835.1,40.8]
[1740356755102,0.70538,2835.3,2834.9,3.7441]
[1740356755305,2.523,2835.2,2834.9,0.70547]
[1740356755503,2.523,2835.2,2835.0,0.70545]
[1740356755805,2.523,2835.2,2834.8,41.3471]
[1740356756007,2.523,2835.2,2835.1,0.70542]
[1740356756503,3.2078,2835.4,2835.3,0.70537]
[1740356756699,3.2078,2835.4,2834.8,41.3471]
[1740356756904,3.2078,2835.4,2835.3,0.70537]
[1740356757105,2.523,2835.7,2835.6,0.7053]
[1740356757705,2.523,2835.7,2835.5,0.70531]
[1740356759009,2.523,2835.7,2835.0,1.76363]
[1740356759210,2.523,2835.7,2835.5,0.70531]
[1740356759604,2.523,2835.7,2834.9,0.541]
[1740356759904,3.2078,2835.2,2834.9,0.541]
[1740356760111,6.43621,2835.2,2834.8,1.25259]
[1740356760308,3.2078,2834.9,2834.4,3.2078]
[1740356760704,3.21308961,2834.9,2834.8,0.7055]
[1740356761103,3.21308961,2834.9,2834.6,0.70555]
[1740356761304,3.21308961,2834.9,2834.1,3.2078]
[1740356761504,0.5547,2834.8,2834.1,3.2078]
[1740356761706,2.523,2834.7,2834.1,3.2078]
[1740356761914,5.73608961,2834.9,2834.2,1.76412]
[1740356762115,0.00528961,2834.9,2834.8,0.7055]
[1740356762411,9.61e-06,2834.9,2834.8,0.7055]
[1740356762811,9.61e-06,2834.9,2834.8,1.2667]
[1740356763011,9.61e-06,2834.9,2834.8,42.0667]
[1740356763314,9.61e-06,2834.9,2834.8,48.0667]
[1740356763909,2.524,2836.1,2834.8,47.3612]
[1740356764122,3.7625,2836.5,2835.6,1.76326]
[1740356764429,6.2865,2836.5,2836.3,0.70512]
[1740356764628,6.2865,2836.5,2835.7,1.0587]
[1740356764929,6.2865,2836.5,2836.3,0.70512]
[1740356766327,0.00528961,2836.6,2836.3,0.70512]
[1740356766534,0.00528961,2836.6,2836.5,0.70508]
[1740356766829,3.2078,2837.4,2837.3,0.70488]
[1740356767024,3.2078,2837.4,2836.9,3.2078]
[1740356767325,22.085,2837.6,2836.8,3.2078]
[1740356767523,3.2078,2837.1,2836.2,1.58952745]
[1740356767725,3.2078,2836.8,2836.1,1.0859]
[1740356767921,3.2078,2836.8,2836.4,0.70508]
[1740356768121,0.00528961,2836.7,2836.1,1.0859]
[1740356768431,3.2078,2836.5,2836.0,3.2078]
[1740356768639,0.70516,2836.2,2836.0,3.2078]
[1740356768930,0.70514,2836.3,2836.0,3.2078]
[1740356769427,0.70521,2836.0,2835.5,3.2078]
[1740356769926,3.91302,2835.9,2835.4,0.70534]
[1740356770132,3.7735,2835.9,2835.1,1.0859]
[1740356770331,3.7735,2835.9,2835.2,3.2078]
[1740356770629,3.7735,2835.9,2835.6,0.70529]
[1740356771031,3.7735,2835.9,2835.2,3.2078]
[1740356771032,3.2078,2836.2,2835.2,3.2078]
[1740356771226,3.2078,2836.2,2836.0,0.70518]
[1740356771423,5.7308,2836.2,2835.8,0.71052961]
[1740356771727,3.2078,2835.9,2835.8,0.00528961]
[1740356771924,3.91302,2835.9,2835.8,0.00528961]
[1740356773123,3.2078,2835.9,2835.8,0.00528961]
[1740356773831,3.91302,2835.9,2835.8,0.00528961]
[1740356774229,3.2078,2835.9,2835.8,0.00528961]
[1740356774625,3.91302,2835.9,2835.8,0.00528961]
[1740356776429,0.70532,2835.6,2835.1,1.25992]
[1740356776629,5.7308,2835.5,2835.1,1.25992]
[1740356776932,5.7308,2835.5,2835.1,0.70542]
[1740356777534,3.2078,2835.2,2835.0,0.00528961]
[1740356777927,0.70542,2835.1,2835.0,0.00528961]
[1740356778435,3.2078,2835.2,2835.0,0.00528961]
[1740356778629,1.23782,2835.1,2835.0,0.00528961]
[1740356778936,3.5771,2835.1,2835.0,0.00528961]
[1740356779622,3.91321,2835.2,2835.0,0.00528961]
[1740356779623,3.2078,2835.2,2835.1,0.70542]
[1740356780024,2.987,2835.4,2835.0,0.00528961]
[1740356780228,5.51,2835.4,2835.3,0.70537]
[1740356780629,2.987,2835.4,2835.1,0.547]
[1740356780830,2.987,2835.4,2835.0,0.00528961]
[1740356780831,0.70539,2835.3,2835.0,0.00528961]
[1740356781031,3.91321,2835.2,2835.0,0.00528961]
[1740356781235,3.2078,2835.2,2835.0,0.00528961]
[1740356781434,3.2078,2835.2,2835.1,0.70542]
[1740356781629,0.5619,2835.3,2835.0,0.71071961]
[1740356782133,3.2078,2835.2,2835.0,0.00528961]
[1740356782433,3.9132,2835.2,2835.0,0.00528961]
[1740356783228,3.2078,2835.2,2835.0,0.00528961]
[1740356783424,0.70542,2835.1,2835.0,0.00528961]
[1740356784437,8.987,2835.1,2834.1,3.2078]
[1740356784738,3.2078,2835.1,2834.4,3.2078]
[1740356785037,3.91323,2835.1,2834.7,0.70552]
[1740356785532,3.91323,2835.1,2834.6,0.70553]
[1740356786335,0.70553,2834.7,2834.2,0.70565]
[1740356786539,3.0689,2834.6,2834.3,0.70562]
[1740356787134,3.2078,2834.5,2834.2,0.70564]
[1740356787334,3.2078,2834.5,2834.1,44.0078]
[1740356787532,3.2078,2834.2,2834.1,40.8]
[1740356787938,3.2078,2834.2,2834.0,0.538]
[1740356788137,3.2078,2834.2,2834.0,1.2437]
[1740356788340,3.2078,2834.2,2834.0,0.538]
[1740356788638,3.2078,2834.2,2834.1,0.70567]
[1740356789039,3.7364,2834.5,2834.4,0.7056]
[1740356789238,3.0689,2834.6,2834.0,0.538]
[1740356789838,3.0689,2834.6,2834.4,0.70559]
[1740356790030,3.0689,2834.6,2834.0,0.538]
[1740356790239,2.523,2834.5,2834.4,0.7056]
[1740356791139,3.22857,2834.5,2834.2,0.70563]
[1740356791343,0.70561,2834.4,2834.1,3.2078]
[1740356791538,0.70561,2834.4,2834.1,3.91347]
[1740356791738,0.70561,2834.4,2834.1,3.2078]
[1740356792043,3.22859,2834.5,2834.1,3.91347]
[1740356792446,3.22858,2834.5,2834.1,3.91345]
[1740356792638,3.22858,2834.5,2834.1,3.91346]
[1740356792941,2.523,2834.5,2834.1,3.2078]
[1740356793341,2.523,2834.5,2834.2,0.70563]
[1740356793545,2.523,2834.5,2834.3,0.70561]
[1740356793845,2.523,2834.5,2834.4,0.7056]
[1740356794543,3.2078,2834.8,2834.1,3.2078]
[1740356794746,0.70557,2834.5,2834.1,3.2078]
[1740356794946,0.70564,2834.3,2834.1,3.2078]
[1740356795649,0.70555,2834.6,2834.2,0.70564]
[1740356796144,1.22853,2834.7,2834.5,0.00309104]
[1740356796343,0.70553,2834.7,2834.5,0.00309104]
[1740356796937,0.70555,2834.6,2834.5,0.00309104]
[1740356797644,0.70553,2834.7,2834.5,0.00309104]
[1740356797833,6.43631,2834.8,2834.5,0.00309104]
[1740356798038,5.7308,2834.8,2834.5,0.70865104]
[1740356798239,5.7308,2834.8,2834.5,0.00309104]
[1740356798445,0.70552,2834.7,2834.5,0.00309104]
[1740356798635,6.43631,2834.8,2834.5,0.00309104]
[1740356799046,3.91331,2834.8,2834.5,0.00309104]
[1740356799242,2.523,2834.7,2834.5,0.00309104]
[1740356800148,2.523,2834.7,2834.5,0.70866104]
[1740356800350,2.523,2834.7,2834.5,0.00309104]
[1740356801343,3.22852,2834.7,2834.5,0.00309104]
[1740356802046,3.2078,2834.8,2834.5,0.00309104]
[1740356802246,19.566,2834.9,2834.8,0.7055]
[1740356802553,2.523,2835.1,2834.7,3.2078]
[1740356802850,5.7308,2835.1,2834.6,1.088]
[1740356803043,0.70549,2834.9,2834.6,1.79354]
[1740356803347,0.70549,2834.9,2834.5,0.00309104]
[1740356803348,3.2078,2834.8,2834.5,0.00309104]
[1740356803552,3.7182,2834.8,2834.5,0.00309104]
[1740356804048,0.70555,2834.6,2834.5,0.00309104]
[1740356804244,3.22855,2834.6,2834.5,0.00309104]
[1740356804639,2.523,2834.6,2834.5,0.00309104]
[1740356805444,2.523,2834.6,2834.5,0.70866104]
[1740356805839,2.523,2834.6,2834.5,0.00309104]
[1740356806248,2.523,2834.6,2834.5,0.70866104]
[1740356806652,2.523,2834.6,2834.5,0.00309104]
[1740356806948,2.523,2834.6,2834.5,0.70866104]
[1740356807552,2.523,2834.6,2834.5,0.00309104]
[1740356807753,2.523,2834.6,2834.5,0.70866104]
[1740356808251,3.7379,2835.1,2835.0,0.70545]
[1740356808453,6.2609,2835.1,2835.0,0.70545]
[1740356808943,2.523,2835.1,2834.7,0.5127]
[1740356809147,5.7308,2835.1,2834.7,0.5127]
[1740356809352,6.43624,2835.1,2834.7,0.5127]
[1740356809650,5.7308,2835.1,2835.0,0.70545]
[1740356810053,6.43623,2835.1,2834.8,0.70549]
[1740356810450,3.91323,2835.1,2834.8,0.70549]
[1740356810647,3.2078,2835.1,2834.7,0.5127]
[1740356810954,3.2078,2835.1,2835.0,0.70545]
[1740356812561,3.2078,2835.1,2834.5,0.00309104]
[1740356812863,0.70555,2834.6,2834.5,0.00309104]
[1740356816759,2.987,2834.6,2833.6,4.2518]
[1740356817051,3.2078,2834.0,2833.6,0.5184]
[1740356817248,2.522,2833.9,2833.7,0.70577]
[1740356817445,3.22773,2833.9,2833.6,0.5184]
[1740356817648,3.2078,2833.7,2833.1,3.2078]
[1740356818057,3.21308961,2833.7,2833.5,0.70581]
[1740356818255,3.21308961,2833.7,2833.1,3.2078]
[1740356819354,3.21308961,2833.7,2833.3,0.70585]
[1740356819552,3.21308961,2833.7,2833.2,0.70589]
[1740356819954,3.91886961,2833.7,2833.3,0.70587]
[1740356820553,3.21308961,2833.7,2833.1,3.2078]
[1740356820850,3.91367,2833.4,2833.0,0.5332]
[1740356821053,3.22787,2833.3,2833.0,0.5332]
[1740356821254,3.22787,2833.3,2832.7,3.2078]
[1740356821255,0.70591,2833.2,2832.7,3.9138]
[1740356821455,2.522,2833.3,2832.7,3.2078]
[1740356821758,2.522,2833.3,2832.5,1.5878]
[1740356821959,2.522,2833.3,2833.0,0.70593]
[1740356822156,3.2078,2833.4,2832.7,3.2078]